fUSD/lending_fUSD_20240419
["ID","MTS","AMOUNT","RATE_DAILY","PERIOD"]
[322950977,1713539439061,-1265.94,0.00013698,2]
[322950978,1713539439071,-1569.58,0.00013698,2]
[322950979,1713539439081,-500.0,0.00013698,2]
[322950980,1713539439091,-500.0,0.00013698,2]
[322950981,1713539439101,-500.0,0.00013698,2]
[322950982,1713539439111,-676.05,0.00013698,2]
[322950983,1713539439121,-500.0,0.00013698,2]
[322950984,1713539439131,-839.27,0.00013698,2]
[322950985,1713539439141,-1843.94,0.00013698,2]
[322950986,1713539439151,-500.0,0.00013698,2]
[322950987,1713539439161,-2221.84,0.00013698,2]
[322950988,1713539439170,-944.69,0.00013698,2]
[322950989,1713539439180,-500.0,0.00013698,2]
[322950990,1713539439189,-585.5,0.00013698,2]
[322950991,1713539439199,-500.0,0.00013698,2]
[322950992,1713539439208,-2721.45,0.00013698,2]
[322950993,1713539439218,-500.0,0.00013698,2]
[322950994,1713539439228,-3907.43,0.00013698,2]
[322950995,1713539439240,-1064.4,0.00013698,2]
[322950996,1713539439249,-500.0,0.00013698,2]
[322950998,1713539439258,-913.89,0.00013698,2]
[322950999,1713539439268,-2265.73,0.00013698,2]
[322951001,1713539439278,-502.06,0.00013698,2]
[322951002,1713539439287,-1697.87,0.00013698,2]
[322951003,1713539439297,-669.72,0.00013698,2]
[322951004,1713539439307,-500.0,0.00013698,2]
[322951005,1713539439316,-1010.33,0.00013698,2]
[322951006,1713539439325,-825.98,0.00013698,2]
[322951007,1713539439335,-2399.43,0.00013698,2]
[322951008,1713539439345,-1448.23,0.00013698,2]
[322951009,1713539439355,-500.0,0.00013698,2]
[322951010,1713539439365,-500.0,0.00013698,2]
[322951011,1713539439374,-705.41,0.00013698,2]
[322951013,1713539439384,-500.0,0.00013698,2]
[322951014,1713539439393,-500.0,0.00013698,2]
[322951015,1713539439403,-500.0,0.00013698,2]
[322951016,1713539439412,-500.0,0.00013698,2]
[322951017,1713539439421,-873.29,0.00013698,2]
[322951018,1713539439431,-500.0,0.00013698,2]
[322951020,1713539439441,-3009.71,0.00013698,2]
[322951021,1713539439452,-1676.86,0.00013698,2]
[322951022,1713539439463,-500.0,0.00013698,2]
[322951023,1713539439473,-500.0,0.00013698,2]
[322951024,1713539439482,-1759.48,0.00013698,2]
[322951025,1713539439494,-871.83,0.00013698,2]
[322951026,1713539439504,-500.0,0.00013698,2]
[322951027,1713539439514,-500.0,0.00013698,2]
[322951028,1713539439523,-500.0,0.00013698,2]
[322951029,1713539439533,-1054.08,0.00013698,2]
[322951030,1713539439543,-776.18,0.00013698,2]
[322951031,1713539439553,-500.0,0.00013698,2]
[322951032,1713539439562,-1444.63,0.00013698,2]
[322951033,1713539439572,-2028.75,0.00013698,2]
[322951034,1713539439582,-500.0,0.00013698,2]
[322951035,1713539439592,-500.0,0.00013698,2]
[322951036,1713539439602,-506.44,0.00013698,2]
[322951037,1713539439612,-719.0,0.00013698,2]
[322951038,1713539439621,-600.14,0.00013698,2]
[322951039,1713539439631,-211.04056669,0.00013698,2]
[322951040,1713539439641,-634.9,0.00013698,2]
[322951041,1713539439650,-500.0,0.00013698,2]
[322951042,1713539439660,-500.0,0.00013698,2]
[322951043,1713539439670,-1055.13,0.00013698,2]
[322951044,1713539439680,-500.0,0.00013698,2]
[322951045,1713539439690,-820.54,0.00013698,2]
[322951046,1713539439700,-803.74,0.00013698,2]
[322951047,1713539439710,-500.0,0.00013698,2]
[322951048,1713539439720,-500.0,0.00013698,2]
[322951049,1713539439730,-879.67,0.00013698,2]
[322951050,1713539439741,-545.88,0.00013698,2]
[322951051,1713539439751,-672.33,0.00013698,2]
[322951052,1713539439761,-2219.53,0.00013698,2]
[322951053,1713539439771,-500.0,0.00013698,2]
[322951054,1713539439780,-500.0,0.00013698,2]
[322951055,1713539439789,-628.82969288,0.00013698,2]
[322951056,1713539439799,-500.0,0.00013698,2]
[322951057,1713539439809,-939.43,0.00013698,2]
[322951058,1713539439819,-585.61,0.00013698,2]
[322951059,1713539439832,-500.0,0.00013698,2]
[322951060,1713539439842,-500.0,0.00013698,2]
[322951061,1713539439853,-500.0,0.00013698,2]
[322951062,1713539439862,-500.0,0.00013698,2]
[322951063,1713539439872,-1106.89,0.00013698,2]
[322951064,1713539439882,-500.0,0.00013698,2]
[322951065,1713539439891,-693.26,0.00013698,2]
[322951066,1713539439902,-580.9,0.00013698,2]
[322951067,1713539439912,-2088.27,0.00013698,2]
[322951068,1713539439921,-950.04,0.00013698,2]
[322951069,1713539439931,-1213.08,0.00013698,2]
[322951070,1713539439940,-555.58,0.00013698,2]
[322951071,1713539439950,-593.89,0.00013698,2]
[322951072,1713539439960,-500.0,0.00013698,2]
[322951073,1713539439971,-500.0,0.00013698,2]
[322951074,1713539439981,-5027.75,0.00013698,2]
[322951075,1713539439995,-509.18,0.00013698,2]
[322951076,1713539440004,-1858.47,0.00013698,2]
[322951077,1713539440013,-500.0,0.00013698,2]
[322951078,1713539440022,-500.0,0.00013698,2]
[322951079,1713539440032,-1500.3,0.00013698,2]
[322951080,1713539440042,-500.0,0.00013698,2]
[322951081,1713539440052,-946.16,0.00013698,2]
[322951082,1713539440062,-557.3474533,0.00013698,2]
[322951083,1713539440072,-500.0,0.00013698,2]
[322951084,1713539440081,-500.0,0.00013698,2]
[322951085,1713539440091,-506.0,0.00013698,2]
[322951086,1713539440101,-880.87,0.00013698,2]
[322951087,1713539440110,-363.48192365,0.00013698,2]
[322951089,1713539440120,-500.0,0.00013698,2]
[322951090,1713539440129,-500.0,0.00013698,2]
[322951092,1713539440139,-694.95,0.00013698,2]
[322951094,1713539440148,-1345.88,0.00013698,2]
[322951096,1713539440157,-558.34,0.00013698,2]
[322951097,1713539440167,-500.0,0.00013698,2]
[322951098,1713539440176,-500.0,0.00013698,2]
[322951099,1713539440186,-598.02,0.00013698,2]
[322951100,1713539440195,-976.37,0.00013698,2]
[322951101,1713539440205,-1434.88,0.00013698,2]
[322951102,1713539440214,-933.14,0.00013698,2]
[322951103,1713539440224,-500.0,0.00013698,2]
[322951104,1713539440233,-500.0,0.00013698,2]
[322951105,1713539440250,-500.0,0.00013698,2]
[322951106,1713539440259,-500.0,0.00013698,2]
[322951107,1713539440269,-643.38644014,0.00013698,2]
[322951108,1713539440278,-500.0,0.00013698,2]
[322951109,1713539440287,-1154.64,0.00013698,2]
[322951110,1713539440297,-1100.69,0.00013698,2]
[322951111,1713539440306,-669.64,0.00013698,2]
[322951112,1713539440687,-500.0,0.00013698,2]
[322951113,1713539440697,-924.6,0.00013698,2]
[322951114,1713539440707,-454.08559778,0.00013698,2]
[322951115,1713539440717,-1288.1,0.00013698,2]
[322951116,1713539440727,-1405.84,0.00013698,2]
[322951117,1713539440740,-1133.01,0.00013698,2]
[322951118,1713539440750,-500.0,0.00013698,2]
[322951119,1713539440760,-730.08,0.00013698,2]
[322951120,1713539440769,-500.0,0.00013698,2]
[322951121,1713539440780,-1976.48,0.00013698,2]
[322951122,1713539440789,-500.0,0.00013698,2]
[322951123,1713539440799,-1492.45,0.00013698,2]
[322951124,1713539440809,-500.0,0.00013698,2]
[322951125,1713539440822,-170.4350672,0.00013698,2]
[322951126,1713539440840,-500.0,0.00013698,2]
[322951127,1713539440859,-208.48,0.00013698,2]
[322951128,1713539440872,-500.0,0.00013698,2]
[322951129,1713539440882,-1424.79,0.00013698,2]
[322951130,1713539440892,-2203.26,0.00013698,2]
[322951131,1713539440903,-500.0,0.00013698,2]
[322951132,1713539440912,-796.07,0.00013698,2]
[322951133,1713539440922,-707.17,0.00013698,2]
[322951134,1713539440933,-500.0,0.00013698,2]
[322951135,1713539440944,-500.0,0.00013698,2]
[322951136,1713539440955,-500.0,0.00013698,2]
[322951137,1713539440965,-700.01,0.00013698,2]
[322951138,1713539440975,-519.18,0.00013698,2]
[322951139,1713539440989,-500.0,0.00013698,2]
[322951140,1713539440998,-1134.86,0.00013698,2]
[322951141,1713539441007,-500.0,0.00013698,2]
[322951142,1713539441016,-3084.75,0.00013698,2]
[322951143,1713539441026,-500.0,0.00013698,2]
[322951144,1713539441035,-500.0,0.00013698,2]
[322951145,1713539441045,-500.0,0.00013698,2]
[322951146,1713539441054,-500.0,0.00013698,2]
[322951147,1713539441063,-500.0,0.00013698,2]
[322951148,1713539441073,-629.55661049,0.00013698,2]
[322951149,1713539441082,-1259.4,0.00013698,2]
[322951150,1713539441091,-623.75,0.00013698,2]
[322951151,1713539441100,-1069.93,0.00013698,2]
[322951152,1713539441110,-500.0,0.00013698,2]
[322951153,1713539441119,-618.61,0.00013698,2]
[322951154,1713539441129,-521.89,0.00013698,2]
[322951155,1713539441138,-500.0,0.00013698,2]
[322951156,1713539441147,-581.13124022,0.00013698,2]
[322951157,1713539441156,-500.0,0.00013698,2]
[322951158,1713539441165,-538.44,0.00013698,2]
[322951159,1713539441175,-1966.54,0.00013698,2]
[322951160,1713539441184,-500.0,0.00013698,2]
[322951161,1713539441194,-1609.8,0.00013698,2]
[322951162,1713539441204,-500.0,0.00013698,2]
[322951163,1713539441214,-7928.74,0.00013698,2]
[322951164,1713539441224,-1092.93,0.00013698,2]
[322951165,1713539441234,-868.83,0.00013698,2]
[322951166,1713539441248,-500.0,0.00013698,2]
[322951167,1713539441257,-1170.04,0.00013698,2]
[322951168,1713539441266,-571.39,0.00013698,2]
[322951169,1713539441276,-500.0,0.00013698,2]
[322951170,1713539441285,-9975.74,0.00013698,2]
[322951171,1713539441295,-500.0,0.00013698,2]
[322951172,1713539441305,-3408.42,0.00013698,2]
[322951173,1713539441314,-1020.07,0.00013698,2]
[322951174,1713539441324,-500.0,0.00013698,2]
[322951175,1713539441334,-514.62,0.00013698,2]
[322951176,1713539441344,-5435.63,0.00013698,2]
[322951177,1713539441354,-500.0,0.00013698,2]
[322951178,1713539441363,-500.0,0.00013698,2]
[322951179,1713539441373,-1686.88,0.00013698,2]
[322951180,1713539441382,-1369.06,0.00013698,2]
[322951181,1713539441391,-1051.05,0.00013698,2]
[322951182,1713539441401,-500.0,0.00013698,2]
[322951183,1713539441410,-500.0,0.00013698,2]
[322951184,1713539441419,-500.0,0.00013698,2]
[322951185,1713539441429,-1008.66,0.00013698,2]
[322951186,1713539441438,-37870.5,0.00013698,2]
[322951187,1713539441448,-2826.2,0.00013698,2]
[322951188,1713539441459,-500.0,0.00013698,2]
[322951189,1713539441469,-500.0,0.00013698,2]
[322951190,1713539441479,-500.0,0.00013698,2]
[322951191,1713539441494,-3214.3,0.00013698,2]
[322951192,1713539441503,-500.0,0.00013698,2]
[322951193,1713539441513,-68489.55,0.00013698,2]
[322951194,1713539441523,-2172.34,0.00013698,2]
[322951195,1713539441533,-500.0,0.00013698,2]
[322951196,1713539441542,-1536.9,0.00013698,2]
[322951197,1713539441552,-1016.99,0.00013698,2]
[322951198,1713539441561,-500.0,0.00013698,2]
[322951199,1713539441570,-917.0,0.00013698,2]
[322951200,1713539441580,-2334.44,0.00013698,2]
[322951201,1713539441590,-5429.57493676,0.00013698,2]
[322951219,1713539443080,-584.35506324,0.00013698,2]
[322951220,1713539443092,-733.92,0.00013698,2]
[322951221,1713539443103,-500.0,0.00013698,2]
[322951222,1713539443118,-500.0,0.00013698,2]
[322951223,1713539443129,-500.0,0.00013698,2]
[322951224,1713539443140,-4264.19,0.00013698,2]
[322951225,1713539443150,-500.0,0.00013698,2]
[322951226,1713539443161,-500.0,0.00013698,2]
[322951227,1713539443171,-500.0,0.00013698,2]
[322951229,1713539443181,-500.0,0.00013698,2]
[322951231,1713539443191,-1149.86,0.00013698,2]
[322951233,1713539443201,-4364.6,0.00013698,2]
[322951234,1713539443210,-1707.82,0.00013698,2]
[322951235,1713539443220,-500.0,0.00013698,2]
[322951236,1713539443231,-500.0,0.00013698,2]
[322951237,1713539443245,-500.0,0.00013698,2]
[322951238,1713539443255,-500.0,0.00013698,2]
[322951239,1713539443264,-500.0,0.00013698,2]
[322951240,1713539443274,-500.0,0.00013698,2]
[322951241,1713539443283,-413.34776996,0.00013698,2]
[322951242,1713539443292,-500.0,0.00013698,2]
[322951243,1713539443301,-5253.04,0.00013698,2]
[322951244,1713539443311,-500.0,0.00013698,2]
[322951245,1713539443322,-1745.37,0.00013698,2]
[322951246,1713539443333,-7246.35847418,0.00013698,2]
[322951247,1713539443352,-1418.29152582,0.00013698,2]
[322951248,1713539443362,-695.32362902,0.00013698,2]
[322951249,1713539443375,-347.96637098,0.00013698,2]
[322951250,1713539443384,-1124.69,0.00013698,2]
[322951251,1713539443393,-500.0,0.00013698,2]
[322951252,1713539443403,-500.0,0.00013698,2]
[322951253,1713539443412,-500.0,0.00013698,2]
[322951254,1713539443422,-5739.83,0.00013698,2]
[322951255,1713539443431,-500.0,0.00013698,2]
[322951256,1713539443441,-5182.2,0.00013698,2]
[322951257,1713539443451,-3129.88,0.00013698,2]
[322951258,1713539443461,-670.63,0.00013698,2]
[322951259,1713539443471,-1339.57,0.00013698,2]
[322951260,1713539443481,-2779.11,0.00013698,2]
[322951261,1713539443492,-500.0,0.00013698,2]
[322951262,1713539443501,-4101.57,0.00013698,2]
[322951263,1713539443510,-712.3,0.00013698,2]
[322951264,1713539443520,-500.0,0.00013698,2]
[322951265,1713539443530,-12222.67,0.00013698,2]
[322951266,1713539443540,-1744.08,0.00013698,2]
[322951267,1713539443550,-753.3,0.00013698,2]
[322951268,1713539443560,-500.0,0.00013698,2]
[322951269,1713539443569,-22102.7,0.00013698,2]
[322951270,1713539443579,-1539.39,0.00013698,2]
[322951271,1713539443940,-500.0,0.00013698,2]
[322951272,1713539443951,-725.11,0.00013698,2]
[322951273,1713539443961,-6928.39,0.00013698,2]
[322951274,1713539443971,-7024.24,0.00013698,2]
[322951275,1713539443981,-500.0,0.00013698,2]
[322951276,1713539443995,-500.0,0.00013698,2]
[322951277,1713539444005,-963.83,0.00013698,2]
[322951278,1713539444014,-5132.16,0.00013698,2]
[322951279,1713539444024,-5019.52,0.00013698,2]
[322951280,1713539444035,-974.15,0.00013698,2]
[322951281,1713539444044,-500.0,0.00013698,2]
[322951282,1713539444054,-803.35,0.00013698,2]
[322951283,1713539444063,-500.0,0.00013698,2]
[322951284,1713539444074,-868.08,0.00013698,2]
[322951285,1713539444084,-642.23,0.00013698,2]
[322951286,1713539444093,-8319.09,0.00013698,2]
[322951287,1713539444102,-500.0,0.00013698,2]
[322951288,1713539444113,-500.0,0.00013698,2]
[322951289,1713539444123,-1351.82,0.00013698,2]
[322951290,1713539444132,-500.0,0.00013698,2]
[322951291,1713539444142,-713.14,0.00013698,2]
[322951292,1713539444152,-1743.3,0.00013698,2]
[322951293,1713539444162,-3333.48,0.00013698,2]
[322951294,1713539444172,-7840.04,0.00013698,2]
[322951295,1713539444181,-667.69,0.00013698,2]
[322951296,1713539444190,-4630.5,0.00013698,2]
[322951297,1713539444199,-500.0,0.00013698,2]
[322951298,1713539444209,-500.0,0.00013698,2]
[322951299,1713539444218,-816.58,0.00013698,2]
[322951300,1713539444227,-12077.47,0.00013698,2]
[322951301,1713539444236,-500.0,0.00013698,2]
[322951302,1713539444249,-3519.68,0.00013698,2]
[322951303,1713539444258,-500.0,0.00013698,2]
[322951304,1713539444268,-937.35,0.00013698,2]
[322951305,1713539444277,-5497.57,0.00013698,2]
[322951306,1713539444286,-500.0,0.00013698,2]
[322951307,1713539444296,-500.0,0.00013698,2]
[322951308,1713539444306,-2761.54,0.00013698,2]
[322951309,1713539444315,-500.0,0.00013698,2]
[322951310,1713539444325,-5590.25,0.00013698,2]
[322951311,1713539444334,-500.0,0.00013698,2]
[322951312,1713539444344,-500.0,0.00013698,2]
[322951313,1713539444353,-500.0,0.00013698,2]
[322951314,1713539444363,-500.0,0.00013698,2]
[322951315,1713539444373,-1662.05,0.00013698,2]
[322951316,1713539444382,-6845.33,0.00013698,2]
[322951317,1713539444392,-2180.04,0.00013698,2]
[322951318,1713539444402,-2809.62,0.00013698,2]
[322951319,1713539444411,-9104.95,0.00013698,2]
[322951320,1713539444421,-2885.34,0.00013698,2]
[322951321,1713539444430,-1148.73,0.00013698,2]
[322951322,1713539444439,-5415.87,0.00013698,2]
[322951323,1713539444449,-658.68,0.00013698,2]
[322951324,1713539444459,-456.82304879,0.00013698,2]
[322951325,1713539444469,-61830.81,0.00013698,2]
[322951326,1713539444478,-500.0,0.00013698,2]
[322951327,1713539444492,-500.0,0.00013698,2]
[322951328,1713539444502,-7183.93,0.00013698,2]
[322951329,1713539444512,-5504.36,0.00013698,2]
[322951330,1713539444522,-863.36,0.00013698,2]
[322951331,1713539444532,-500.0,0.00013698,2]
[322951332,1713539444542,-3680.61,0.00013698,2]
[322951333,1713539444551,-500.0,0.00013698,2]
[322951334,1713539444561,-515.79,0.00013698,2]
[322951335,1713539444571,-819.76,0.00013698,2]
[322951336,1713539444580,-500.0,0.00013698,2]
[322951337,1713539444589,-6361.5,0.00013698,2]
[322951338,1713539444599,-3850.79,0.00013698,2]
[322951339,1713539444609,-500.0,0.00013698,2]
[322951340,1713539444618,-2867.99,0.00013698,2]
[322951341,1713539444628,-1025.6,0.00013698,2]
[322951342,1713539444638,-667.33,0.00013698,2]
[322951343,1713539444647,-1372.05,0.00013698,2]
[322951344,1713539444657,-500.0,0.00013698,2]
[322951345,1713539444667,-2145.77,0.00013698,2]
[322951346,1713539444677,-1309.02,0.00013698,2]
[322951347,1713539444686,-4199.02,0.00013698,2]
[322951348,1713539444696,-2170.36,0.00013698,2]
[322951349,1713539444706,-2275.5,0.00013698,2]
[322951350,1713539444716,-6343.29,0.00013698,2]
[322951351,1713539444726,-672.04,0.00013698,2]
[322951352,1713539444735,-3246.23,0.00013698,2]
[322951353,1713539444750,-691.17,0.00013698,2]
[322951354,1713539444760,-1964.06,0.00013698,2]
[322951355,1713539444770,-500.0,0.00013698,2]
[322951356,1713539444780,-796.77,0.00013698,2]
[322951357,1713539444790,-4995.8,0.00013698,2]
[322951358,1713539444800,-4516.87,0.00013698,2]
[322951359,1713539444810,-1803.39,0.00013698,2]
[322951360,1713539444820,-500.0,0.00013698,2]
[322951361,1713539444831,-3606.67,0.00013698,2]
[322951362,1713539444842,-500.0,0.00013698,2]
[322951363,1713539444852,-500.0,0.00013698,2]
[322951364,1713539444861,-511.21,0.00013698,2]
[322951365,1713539444872,-838.83,0.00013698,2]
[322951366,1713539444882,-3171.71,0.00013698,2]
[322951367,1713539444891,-500.0,0.00013698,2]
[322951368,1713539444901,-9222.35,0.00013698,2]
[322951369,1713539444912,-3500.55,0.00013698,2]
[322951370,1713539444922,-2598.46,0.00013698,2]
[322951371,1713539444932,-1479.86,0.00013698,2]
[322951372,1713539444941,-1407.94,0.00013698,2]
[322951373,1713539444951,-500.0,0.00013698,2]
[322951374,1713539444961,-533.39487365,0.00013698,2]
[322951375,1713539444970,-637.24,0.00013698,2]
[322951376,1713539444980,-500.0,0.00013698,2]
[322951377,1713539444994,-6160.11,0.00013698,2]
[322951378,1713539445006,-2428.89,0.00013698,2]
[322951379,1713539445015,-500.0,0.00013698,2]
[322951380,1713539445024,-6036.67,0.00013698,2]
[322951381,1713539445035,-6219.6,0.00013698,2]
[322951382,1713539445045,-500.0,0.00013698,2]
[322951383,1713539445055,-500.0,0.00013698,2]
[322951384,1713539445065,-500.0,0.00013698,2]
[322951385,1713539445075,-500.0,0.00013698,2]
[322951386,1713539445084,-500.0,0.00013698,2]
[322951387,1713539445094,-500.0,0.00013698,2]
[322951388,1713539445103,-756.98,0.00013698,2]
[322951389,1713539445113,-503.45607492,0.00013698,2]
[322951390,1713539445123,-1900.46,0.00013698,2]
[322951391,1713539445132,-4988.53,0.00013698,2]
[322951392,1713539445143,-4617.52,0.00013698,2]
[322951393,1713539445152,-692.6,0.00013698,2]
[322951394,1713539445161,-2469.31,0.00013698,2]
[322951395,1713539445171,-500.0,0.00013698,2]
[322951396,1713539445180,-1105.67,0.00013698,2]
[322951397,1713539445190,-640.07,0.00013698,2]
[322951398,1713539445199,-634.09,0.00013698,2]
[322951399,1713539445209,-2459.17,0.00013698,2]
[322951400,1713539445218,-4496.93,0.00013698,2]
[322951401,1713539445228,-500.0,0.00013698,2]
[322951402,1713539445241,-500.0,0.00013698,2]
[322951403,1713539445250,-2958.97,0.00013698,2]
[322951404,1713539445259,-11710.31,0.00013698,2]
[322951405,1713539445269,-10190.09,0.00013698,2]
[322951406,1713539445278,-2099.85,0.00013698,2]
[322951407,1713539445287,-500.0,0.00013698,2]
[322951408,1713539445297,-500.0,0.00013698,2]
[322951409,1713539445306,-591.93,0.00013698,2]
[322951411,1713539445316,-500.0,0.00013698,2]
[322951412,1713539445325,-1208.96,0.00013698,2]
[322951413,1713539445335,-4135.08,0.00013698,2]
[322951414,1713539445344,-2967.19,0.00013698,2]
[322951415,1713539445354,-10956.09,0.00013698,2]
[322951416,1713539445364,-649.49,0.00013698,2]
[322951418,1713539445373,-2464.06,0.00013698,2]
[322951420,1713539445383,-10715.63,0.00013698,2]
[322951421,1713539445393,-4223.22,0.00013698,2]
[322951423,1713539445402,-2030.89,0.00013698,2]
[322951426,1713539445417,-500.0,0.00013698,2]
[322951427,1713539445426,-500.0,0.00013698,2]
[322951428,1713539445436,-704.97,0.00013698,2]
[322951429,1713539445445,-9396.29,0.00013698,2]
[322951430,1713539445456,-500.0,0.00013698,2]
[322951431,1713539445465,-1256.51,0.00013698,2]
[322951432,1713539445475,-18212.06,0.00013698,2]
[322951433,1713539445485,-4255.21,0.00013698,2]
[322951434,1713539445497,-5332.77,0.00013698,2]
[322951435,1713539445507,-1905.71,0.00013698,2]
[322951436,1713539445516,-500.0,0.00013698,2]
[322951437,1713539445526,-1407.82,0.00013698,2]
[322951438,1713539445536,-500.0,0.00013698,2]
[322951439,1713539445546,-3206.61,0.00013698,2]
[322951440,1713539445556,-500.0,0.00013698,2]
[322951441,1713539445565,-2440.3,0.00013698,2]
[322951442,1713539445574,-934.89,0.00013698,2]
[322951443,1713539445584,-6273.24,0.00013698,2]
[322951444,1713539445593,-990.51,0.00013698,2]
[322951445,1713539445603,-3428.52,0.00013698,2]
[322951446,1713539445613,-5267.06,0.00013698,2]
[322951447,1713539445622,-808.04,0.00013698,2]
[322951448,1713539445631,-3486.88,0.00013698,2]
[322951449,1713539445641,-500.0,0.00013698,2]
[322951450,1713539445651,-682.4,0.00013698,2]
[322951451,1713539445661,-9066.2,0.00013698,2]
[322951452,1713539445671,-2018.61,0.00013698,2]
[322951453,1713539445681,-500.0,0.00013698,2]
[322951454,1713539445690,-514.45,0.00013698,2]
[322951455,1713539445699,-500.0,0.00013698,2]
[322951456,1713539445710,-800.8,0.00013699,2]
[322951457,1713539445719,-200.0,0.00013699,2]
[322951458,1713539445729,-500.0,0.00013699,2]
[322951459,1713539445741,-1250.0,0.000137,2]
[322951460,1713539445750,-854.90794872,0.00013735,2]
[322951461,1713539445760,-787.9320887,0.00013833,2]
[322951462,1713539445769,-5680.69,0.00013856,2]
[322951463,1713539445779,-1657.46,0.00013856,2]
[322951464,1713539445788,-13774.05,0.00013856,2]
[322951465,1713539445797,-52359.99,0.00013856,2]
[322951466,1713539445807,-14205.53,0.00013856,2]
[322951467,1713539445817,-4374.83,0.00013856,2]
[322951468,1713539445830,-6042.3,0.00013856,2]
[322951469,1713539445840,-14484.23,0.00013856,2]
[322951470,1713539445850,-3560.16,0.00013856,2]
[322951471,1713539445859,-5052.64,0.00013856,2]
[322951472,1713539445869,-5514.67,0.00013856,2]
[322951473,1713539445879,-199.24087466,0.00013872,2]
[322951474,1713539445888,-254.91292133,0.00013962,2]
[322951475,1713539445898,-500.0,0.00013972,2]
[322951476,1713539445908,-702.56,0.00013972,2]
[322951477,1713539445917,-1631.13,0.00013972,2]
[322951478,1713539445928,-1233.73,0.00013972,2]
[322951479,1713539445939,-500.0,0.00013972,2]
[322951480,1713539445949,-570.08,0.00013972,2]
[322951481,1713539445970,-500.0,0.00013972,2]
[322951482,1713539445980,-500.0,0.00013972,2]
[322951483,1713539445991,-735.78,0.00013972,2]
[322951484,1713539446001,-1171.72,0.00013972,2]
[322951485,1713539446010,-500.0,0.00013972,2]
[322951486,1713539446020,-1300.51,0.00013972,2]
[322951487,1713539446030,-438.09638236,0.00013972,2]
[322951488,1713539446040,-1561.56,0.00013972,2]
[322951489,1713539446050,-1774.77,0.00013972,2]
[322951490,1713539446060,-2211.25,0.00013972,2]
[322951491,1713539446069,-500.0,0.00013972,2]
[322951492,1713539446079,-1935.44,0.00013972,2]
[322951493,1713539446089,-688.3,0.00013972,2]
[322951494,1713539446098,-930.95,0.00013972,2]
[322951495,1713539446108,-500.0,0.00013972,2]
[322951496,1713539446117,-584.46,0.00013972,2]
[322951497,1713539446127,-961.55,0.00013972,2]
[322951498,1713539446137,-1173.26,0.00013972,2]
[322951499,1713539446146,-2198.67,0.00013972,2]
[322951500,1713539446156,-634.45,0.00013972,2]
[322951501,1713539446166,-500.0,0.00013972,2]
[322951502,1713539446176,-1265.94,0.00013972,2]
[322951503,1713539446186,-1569.58,0.00013972,2]
[322951504,1713539446195,-500.0,0.00013972,2]
[322951505,1713539446205,-500.0,0.00013972,2]
[322951506,1713539446215,-500.0,0.00013972,2]
[322951507,1713539446224,-676.05,0.00013972,2]
[322951508,1713539446234,-500.0,0.00013972,2]
[322951509,1713539446245,-839.27,0.00013972,2]
[322951510,1713539446255,-1843.94,0.00013972,2]